Cogmind - Beta 15 @@@ ROGUE MODE // 2025.05.23 @ 13:48:50 Player: Spoggerific Result: Destroyed by S-27 Virus with Autogun Performance ------------- Evolutions (4) 2000 Regions Visited (14) 2800 Robots Destroyed (89) 445 Value Destroyed (2870) 2870 Prototype IDs (45) 900 Alien Tech Used (0) 0 Bonus (1928) 1928 TOTAL SCORE: 10943 Bonus ------- Follower Combat Kills 28 Awakened Behemoth Slayer 1000 Aligned with FarCom 300 Met Data Miner 300 Met Imprinter 300 Cogmind --------- Core Integrity 0/850 Matter 300/300 Energy 99/100 System Corruption 2% Temperature Cool (0) Movement Core (50) Location -5/Proximity Caves Parts ------- > --- POWER (2) -------- (None) > --- PROPULSION (4) --- (None) > --- UTILITY (7) ------ (None) > --- WEAPON (2) ------- (None) > --- INVENTORY (5) ---- Wave Gun AWS/Thermal Makeshift Hammer Dirty Bomb Trap Peak State ------------ > --- POWER ------------ Reinforced Deuterium Engine Angular Momentum Engine > --- PROPULSION ------- Armored Treads Improved Medium Treads Improved Medium Treads Carbon-fiber Leg > --- UTILITY ---------- Medium Storage Unit Improved Melee Analysis Suite Target Analyzer Phase Shifter Improved Utility Shielding Medium Reflective Plating Experimental Hacking Suite > --- WEAPON ----------- Great Axe CR-A16's Behemoth Slayer > --- INVENTORY -------- Flexi-carbon Leg Hacking Suite Wave Gun AWS/Thermal Magnetic Acceleration Cannon Makeshift Hammer Dirty Bomb Trap Dirty Bomb Trap [Rating: 70] Favorites ----------- Power Reinforced Deuterium Engine Engine Reinforced Deuterium Engine Power Core Micro Nuclear Core Propulsion Aerolev Unit Treads Light Treads Leg Carbon-fiber Leg Hover Unit Aerolev Unit Utility Medium Storage Unit Device Reaction Control System Storage Medium Storage Unit Processor Terrain Scan Processor Hackware Experimental Hacking Suite Protection Improved Utility Shielding Weapon CR-A16's Behemoth Slayer Energy Gun AWS/Thermal Ballistic Gun Assault Rifle Ballistic Cannon Magnetic Acceleration Cannon Launcher Heavy Missile Launcher Impact Weapon Makeshift Hammer Slashing Weapon Great Axe Piercing Weapon CR-A16's Behemoth Slayer Build | -11 -10 -10 -10 -9 -8 -7 -7 -7 -6 -6 -6 -6 -6 -5 ------- Run | Yrd Mat Min Exi Min Mat Fac Low Zio Pro Fac Low Low Dat Pro Slots Evolved 8 | . . . . . 4 2 . . . 2 . . . . Power 1 | . . . . . . 1 . . . . . . . . Propulsion 2 | . . . . . 2 . . . . . . . . . Utility 5 | . . . . . 2 1 . . . 2 . . . . Weapon . | . . . . . . . . . . . . . . . Parts Attached 76 | 7 2 1 1 . 8 8 2 4 7 15 10 11 . . Power 11 | 1 . . . . 1 1 . 1 . 4 1 2 . . Engine 9 | 1 . . . . . . . 1 . 4 1 2 . . Core 2 | . . . . . 1 1 . . . . . . . . Reactor . | . . . . . . . . . . . . . . . Propulsion 25 | 2 . . . . 5 2 1 . 2 4 5 4 . . Treads 5 | . . . . . . . . . 1 . 3 1 . . Leg 13 | 2 . . . . 1 . . . 1 4 2 3 . . Wheel . | . . . . . . . . . . . . . . . Hover 7 | . . . . . 4 2 1 . . . . . . . Flight . | . . . . . . . . . . . . . . . Utility 25 | 2 1 1 . . 2 3 . 1 2 6 3 4 . . Device 10 | 1 . 1 . . . 1 . . 2 3 1 1 . . Storage 3 | 1 1 . . . . . . . . 1 . . . . Processor 7 | . . . . . 1 1 . 1 . 1 1 2 . . Hackware 1 | . . . . . . . . . . 1 . . . . Protection 4 | . . . . . 1 1 . . . . 1 1 . . Artifact . | . . . . . . . . . . . . . . . Weapon 15 | 2 1 . 1 . . 2 1 2 3 1 1 1 . . Energy Gun 4 | 1 . . 1 . . 2 . . . . . . . . Energy Cannon . | . . . . . . . . . . . . . . . Ballistic Gun 1 | 1 . . . . . . . . . . . . . . Ballistic Cannon 1 | . . . . . . . . . 1 . . . . . Launcher 1 | . . . . . . . 1 . . . . . . . Special Weapon . | . . . . . . . . . . . . . . . Impact Weapon 1 | . . . . . . . . . . . . 1 . . Slashing Weapon 5 | . 1 . . . . . . 1 1 1 1 . . . Piercing Weapon 2 | . . . . . . . . 1 1 . . . . . Special Melee Weapon . | . . . . . . . . . . . . . . . Unidentified Prototypes 4 | . . 1 . . 1 . . 1 . 1 . . . . Parts Lost 37 | . . . . . . . . . 14 4 8 5 . 6 Power 7 | . . . . . . . . . 2 2 1 1 . 1 Propulsion 15 | . . . . . . . . . 6 . 4 1 . 4 Utility 11 | . . . . . . . . . 4 2 2 3 . . Weapon 4 | . . . . . . . . . 2 . 1 . . 1 Highest Loss Streak 10 | . . . . . . . . . 10 4 8 2 . 6 To Critical Strikes . | . . . . . . . . . . . . . . . Average Backups 6 | . 1 6 8 9 8 9 8 8 7 7 6 5 4 4 Power . | . . . . . . . 1 . . . . . . . Propulsion . | . . 1 1 1 . 1 2 1 . . . . . . Utility 1 | . . 2 3 3 3 4 2 2 2 1 1 1 1 . Weapon 3 | . . 3 4 5 4 2 3 4 4 5 4 3 3 3 Tool/Special . | . . . . . . . . . . . . . . . Unused Backups 13 | . . . . . 5 5 . 1 . . . 1 . 1 Power . | . . . . . . . . . . . . . . . Propulsion 2 | . . . . . . 2 . . . . . . . . Utility 6 | . . . . . 2 2 . 1 . . . . . 1 Weapon 5 | . . . . . 3 1 . . . . . 1 . . Tool/Special . | . . . . . . . . . . . . . . . Average Slot Usage (%) 86 | . 100 100 89 85 76 85 92 93 47 84 91 95 93 79 Engine 8 | . 14 14 14 14 4 . . 3 . 8 10 13 13 9 Core 1 | . . . . . 4 7 7 7 . . . . . . Treads 4 | . . . . . . . . . 2 . 11 12 . . Leg 13 | . 28 28 28 28 10 . . . . 22 10 12 26 21 Hover 7 | . . . . . 19 30 30 30 7 . . . . . Device 10 | . 14 14 14 14 9 10 14 11 12 21 6 3 . . Storage 7 | . 14 14 14 14 9 7 7 7 7 6 6 6 6 5 Processor 11 | . . . . . 6 11 7 10 7 6 19 19 26 24 Hackware 3 | . . . . . . . . . . 5 6 6 6 5 Protection 3 | . . . . . 3 6 7 7 . . 3 6 . . Energy Gun 4 | . 13 14 14 14 9 8 14 . . . . . . . Ballistic Gun 1 | . 14 14 4 . . . . . . . . . . . Slashing Weapon 2 | . . . . . . . . 5 . 4 5 4 . . Piercing Weapon 3 | . . . . . . . . 5 2 4 5 6 6 4 Peak Build Rating 70 | 9 9 15 30 24 44 53 49 54 54 66 66 70 67 67 Average Rating 46 | 4 9 12 24 24 35 50 48 47 24 53 59 64 67 55 On Entrance 37 | . 9 9 15 24 24 44 49 49 54 23 66 64 67 67 Naked Turns 11 | . . . . . . . . . . . . . . 11 Heaviest Build 54 | 15 20 20 24 24 27 34 35 36 35 43 48 54 37 37 Greatest Support 80 | 20 20 20 20 20 31 34 35 35 35 56 70 80 71 71 Greatest Overweight (x) 4 | 4 . . 1 1 2 1 1 1 4 1 2 . . 3 Average Overweight (x) . | 1 . . . 1 . . . . . . . . . . Largest Inventory Capacity 10 | 8 10 10 10 10 10 10 10 10 10 10 10 10 10 10 Average Capacity 9 | 7 8 10 10 10 10 10 10 10 10 10 10 10 10 9 Most Carried 10 | . 6 7 10 10 10 10 10 10 10 10 10 10 8 10 Average Carried 8 | . 1 6 8 9 8 9 9 9 8 8 9 9 8 8 Final Capacity 10 | 8 10 10 10 10 10 10 10 10 10 10 10 10 10 5 Final Carried 10 | . 6 7 9 10 10 10 9 9 8 8 10 8 8 5 Class Distribution -------------------- 31% | Scavenger-Gladiator 28% | Mutant 15% | Scavenger-Mutant 7% | Derelict-Gladiator 6% | Scout 4% | Scavenger-Scout 3% | Skirmisher Dominant Class ---------------- Mutant | -10/Materials Mutant | -10/Mines Mutant | -10/Exiles Skirmisher | -9/Mines Scavenger-Scout | -8/Materials Scout | -7/Factory Scavenger-Mutant | -7/Lower Caves Scavenger-Mutant | -7/Zion Mutant | -6/Proximity Caves Mutant | -6/Factory Scavenger-Gladiator | -6/Lower Caves Scavenger-Gladiator | -6/Lower Caves Derelict-Gladiator | -6/Data Miner Derelict-Gladiator | -5/Proximity Caves Resources | -11 -10 -10 -10 -9 -8 -7 -7 -7 -6 -6 -6 -6 -6 -5 ----------- Run | Yrd Mat Min Exi Min Mat Fac Low Zio Pro Fac Low Low Dat Pro Matter Collected 1491 | 77 219 40 . 55 75 110 29 129 102 178 324 153 . . Remotely . | . . . . . . . . . . . . . . . Salvage Created 3314 | 26 282 . . 55 247 623 93 . 271 647 417 653 . . Parts 180 | 4 20 . . 6 16 35 5 . 12 35 16 31 . . Haulers Intercepted 1 | . 1 . . . . . . . . . . . . . Recyclers Shooed . | . . . . . . . . . . . . . . . Parts Field Recycled . | . . . . . . . . . . . . . . . Retrieved Matter . | . . . . . . . . . . . . . . . Parts Self-Destructed 54 | . . . . . . . 1 . 9 . 14 30 . . Prevented 2 | . . . . . . . . . . . 1 1 . . Kills | -11 -10 -10 -10 -9 -8 -7 -7 -7 -6 -6 -6 -6 -6 -5 ------- Run | Yrd Mat Min Exi Min Mat Fac Low Zio Pro Fac Low Low Dat Pro Combat Hostiles Destroyed 65 | . 9 . . 4 6 7 5 . 4 4 13 13 . . Melee 21 | . . . . . . . . . 3 3 4 11 . . Guns 27 | . 9 . . 4 6 7 1 . . . . . . . AOE 13 | . . . . . . . 4 . . . 9 . . . Classes Destroyed 16 | 1 3 . . . 2 5 1 . 1 2 1 . . . Worker 6 | . . . . . . . . . . 6 . . . . Builder 2 | . . . . . . 1 . . . 1 . . . . Tunneler 2 | 2 . . . . . . . . . . . . . . Hauler 1 | . 1 . . . . . . . . . . . . . Recycler 3 | . . . . . . 1 . . . 2 . . . . Minesweeper 1 | . . . . . . . . . . . 1 . . . Operator 1 | . . . . . . 1 . . . . . . . . Watcher 8 | . . . . . 3 5 . . . . . . . . Swarmer 27 | . 5 . . 4 4 . 4 . . . 5 5 . . Grunt 17 | . 4 . . . 1 2 . . 3 . 3 4 . . Brawler 4 | . . . . . . 1 . . . . 3 . . . Duelist 4 | . . . . . . . 1 . . . 1 2 . . Sentry 5 | . . . . . 1 1 . . . 1 1 1 . . Hunter 1 | . . . . . . . . . . 1 . . . . Programmer 4 | . . . . . . 3 . . . 1 . . . . Behemoth 3 | . . . . . . . . . 1 1 . 1 . . Best Kill Streak 5 | 2 3 . . 4 5 5 4 . 2 4 5 3 . . Combat Bots Only 5 | . 3 . . 4 5 4 4 . 2 1 5 3 . . Max Kills in Single Turn 3 | 2 1 . . 1 1 1 2 . 1 1 3 1 . . Gunslinging . | . . . . . . . . . . . . . . . Exploded 3 | . . . . . . . 2 . . . 3 . . . Melee 1 | . . . . . . . . . 1 1 1 1 . . Uniques/NPCs Destroyed . | . . . . . . . . . . . . . . . Combat | -11 -10 -10 -10 -9 -8 -7 -7 -7 -6 -6 -6 -6 -6 -5 -------- Run | Yrd Mat Min Exi Min Mat Fac Low Zio Pro Fac Low Low Dat Pro Hostile Shots Fired 474 | . 27 . . 4 8 31 46 . 75 71 61 105 . 46 Missed 161 | . 7 . . . 2 17 24 . 14 26 21 27 . 23 Hits 313 | . 20 . . 4 6 14 22 . 61 45 40 78 . 23 Melee 11 | . . . . . . . . . . . 7 4 . . Projectile 302 | . 20 . . 4 6 14 22 . 61 45 33 74 . 23 Critical Strikes 18 | . . . . . . . . . 1 3 5 6 . 3 Actively Blocked 1 | . . . . . . . . . . . . 1 . . Damage Taken 5466 | . 188 . . 31 52 148 258 . 1310 565 983 1447 . 484 Core 1511 | . 22 . . . 6 36 32 . 562 96 381 175 . 201 Absorbed by Shields 80 | . . . . . . . . . . 80 . . . . Redirected to Shielding 101 | . . . . . . . . . . . . 101 . . Ignored by Resistances 11 | . . . . . . 11 . . . . . . . . Core Remaining (%) 74 | 100 . . . 91 98 . . . 10 . . . . . Volleys Fired 43 | 2 25 . . . . . 7 . . . 9 . . . Largest 2 | 2 2 . . . . . 2 . . . 1 . . . Hottest 162 | 70 70 . . . . . 162 . . . 39 . . . Shots Fired 158 | 4 49 . . 6 24 55 11 . . . 9 . . . Gun 146 | 4 49 . . 6 24 55 8 . . . . . . . Cannon . | . . . . . . . . . . . . . . . Launcher 12 | . . . . . . . 3 . . . 9 . . . Special . | . . . . . . . . . . . . . . . Kinetic 27 | 2 25 . . . . . . . . . . . . . Thermal 119 | 2 24 . . 6 24 55 8 . . . . . . . Explosive 12 | . . . . . . . 3 . . . 9 . . . Electromagnetic . | . . . . . . . . . . . . . . . Robot Hit Streak 15 | 2 9 . . 5 4 15 2 . . . 4 . . . Robot Miss Streak 4 | 1 2 . . 1 3 1 4 . . . 2 . . . Penetration Max . | . . . . . . . . . . . . . . . Secondary Targets . | . . . . . . . . . . . . . . . Autonomous 86 | . . . . 6 24 56 . . . . . . . . Shots Hit Robots 200 | 2 32 . . 5 15 47 4 . 12 29 18 36 . . Core Hits 124 | 2 16 . . 4 11 19 7 . 7 10 35 13 . . Critical Kills 1 | . . . . . . . . . . . . 1 . . Critical Parts Destroyed 1 | . . . . . . . . . . . . 1 . . Critical Strikes 16 | . 1 . . . . . . . 2 4 2 7 . . Burn 1 | . 1 . . . . . . . . . . . . . Smash 2 | . . . . . . . . . . . . 2 . . Sever 8 | . . . . . . . . . 1 4 1 2 . . Impale 5 | . . . . . . . . . 1 . 1 3 . . Melee Attacks 142 | . 4 . . . . . . . 19 46 24 49 . . Impact 6 | . . . . . . . . . . . . 6 . . Slashing 96 | . 4 . . . . . . . 7 37 17 31 . . Piercing 40 | . . . . . . . . . 12 9 7 12 . . Sneak Attacks 15 | . . . . . . . . . . 11 4 . . . Combat Hostiles . | . . . . . . . . . . . . . . . Follow-up Attacks 17 | . . . . . . . . . 1 4 3 9 . . Damage Inflicted 8134 | 48 404 . . 145 477 1458 365 . 453 1545 1785 1454 . . Guns 2596 | 48 400 . . 145 477 1429 97 . . . . . . . Cannons . | . . . . . . . . . . . . . . . Explosions 1327 | . . . . . . . 268 . . . 1059 . . . Melee 4178 | . . . . . . . . . 453 1545 726 1454 . . Ramming 33 | . 4 . . . . 29 . . . . . . . . Kinetic 225 | 23 202 . . . . . . . . . . . . . Thermal 2371 | 25 198 . . 145 477 1429 97 . . . . . . . Explosive 1327 | . . . . . . . 268 . . . 1059 . . . Electromagnetic . | . . . . . . . . . . . . . . . Impact 204 | . . . . . . . . . . . . 204 . . Slashing 3094 | . . . . . . . . . 233 1291 555 1015 . . Piercing 880 | . . . . . . . . . 220 254 171 235 . . Highest Corruption 4 | . . . . . . 4 4 4 . 2 2 2 2 2 Average Corruption 2 | . . . . . . 2 4 4 . 1 2 2 2 2 Corruption Purged . | . . . . . . . . . . . . . . . Corruption Blocked . | . . . . . . . . . . . . . . . Effects 88 | . . . . . . 19 3 . . 9 34 21 1 1 Message Errors 26 | . . . . . . 8 2 . . 3 9 4 . . Matter Fused 17 | . . . . . . 4 1 . . 2 5 5 . . Heat Flow Errors 5 | . . . . . . . . . . . 2 3 . . Energy Discharges 9 | . . . . . . 2 . . . . 5 2 . . Parts Rejected 1 | . . . . . . . . . . 1 . . . . Parts Fused 1 | . . . . . . . . . . . 1 . . . Data Loss (minor) 18 | . . . . . . 3 . . . 1 9 4 . 1 Data Loss (major) 6 | . . . . . . 1 . . . 1 1 2 1 . Alerts 5 | . . . . . . 1 . . . 1 2 1 . . Overload Shots . | . . . . . . . . . . . . . . . Overflow Damage 646 | . . . . . . . . . . 346 162 138 . . Projectiles . | . . . . . . . . . . . . . . . Explosions 11 | . . . . . . . . . . . 11 . . . Melee 635 | . . . . . . . . . . 346 151 138 . . Knockbacks . | . . . . . . . . . . . . . . . Impact . | . . . . . . . . . . . . . . . Kinetic . | . . . . . . . . . . . . . . . Secondary . | . . . . . . . . . . . . . . . Self-Inflicted Damage 44 | . . . . . . 14 . . . . 30 . . . Shots 1 | . . . . . . . . . . . 1 . . . Rammed 2 | . . . . . . 2 . . . . . . . . Targets Rammed 3 | . 1 . . . . 2 . . . . . . . . Kicked 1 | . 1 . . . . . . . . . . . . . Crushed . | . . . . . . . . . . . . . . . Highest Temperature 334 | 18 75 . . . . 4 334 1 9 . 255 235 . . Average Temperature 58 | 10 22 . . . . 3 129 1 1 . 99 82 . . Received Heat Transfer 1171 | . 48 . . . 9 36 54 . 441 64 180 195 . 144 Effects 2 | . . . . . . . 2 . . . . . . . Interference 2 | . . . . . . . 2 . . . . . . . Siege Activations . | . . . . . . . . . . . . . . . Martial Activations . | . . . . . . . . . . . . . . . Shielding Activations . | . . . . . . . . . . . . . . . Robots Disrupted . | . . . . . . . . . . . . . . . Combat Hostiles . | . . . . . . . . . . . . . . . Robots Corrupted 1 | . . . . . . . . . . . . 1 . . Combat Hostiles 1 | . . . . . . . . . . . . 1 . . Parts Fried 1 | . . . . . . . . . . . . 1 . . Impact Corruptions 1 | . . . . . . . . . . . . 1 . . Robots Melted . | . . . . . . . . . . . . . . . Combat Hostiles . | . . . . . . . . . . . . . . . Parts Melted 7 | . 2 . . 1 2 2 . . . . . . . . Heat Transferred 3404 | 74 666 . . 185 629 1702 148 . . . . . . . Parts Sabotaged . | . . . . . . . . . . . . . . . Parts Stolen . | . . . . . . . . . . . . . . . Parts Stripped . | . . . . . . . . . . . . . . . Power Chain Reactions . | . . . . . . . . . . . . . . . Alert | -11 -10 -10 -10 -9 -8 -7 -7 -7 -6 -6 -6 -6 -6 -5 ------- Run | Yrd Mat Min Exi Min Mat Fac Low Zio Pro Fac Low Low Dat Pro Maximum Alert Level . | . . . . . . . . . . . . . . . Low Security (%) 100 | 100 100 100 . 100 100 100 . . . 100 . . . . Level 1 . | . . . . . . . . . . . . . . . Level 2 . | . . . . . . . . . . . . . . . Level 3 . | . . . . . . . . . . . . . . . Level 4 . | . . . . . . . . . . . . . . . Level 5 . | . . . . . . . . . . . . . . . High Security . | . . . . . . . . . . . . . . . Max Security . | . . . . . . . . . . . . . . . Peak Influence 199 | 10 105 8 . 95 199 161 . . . 90 . . . . Initial 9 | . 6 8 . . . 9 . . . . . . . . Average 32 | 1 30 . . 34 45 47 . . . 22 . . . . Influence Increases 2702 | 10 259 . . 105 341 377 140 . 100 330 395 615 . 30 Destroy 0b10 Robot/C 1380 | . 180 . . 80 200 140 100 . 80 80 260 260 . . Destroy 0b10 Robot/NC 125 | 10 5 . . . 20 40 . . . 45 5 . . . Destroy Leader 258 | . 32 . . 10 36 60 10 . 20 40 10 40 . . Allied During Kill 38 | . . . . 14 24 . . . . . . . . . Successful Hack 100 | . 9 . . . 25 27 . . . 39 . . . . Disable Machine 45 | . . . . . 15 30 . . . . . . . . Destroy Structure 21 | . 3 . . 1 6 5 . . . 6 . . . . Partial Spotted 15 | . . . . . . 15 . . . . . . . . Lose Combat Pursuer 720 | . 30 . . . 15 60 30 . . 120 120 315 . 30 Influence Decreases 2672 | . 247 22 . 105 319 336 134 69 100 281 444 387 228 . Entered New Map 371 | . 4 14 . . . 13 24 69 . . 19 . 228 . Time Decay 1906 | . 243 8 . 105 126 313 110 . 88 268 328 317 . . Lost Part 155 | . . . . . . . . . 12 13 80 50 . . Lost Ally 87 | . . . . . 40 10 . . . . 17 20 . . Purge Threat 153 | . . . . . 153 . . . . . . . . . Squads Dispatched 15 | . 2 . . . . 5 . . . 7 . 1 . . Investigation 4 | . . . . . . 2 . . . 2 . . . . Extermination 6 | . . . . . . 3 . . . 3 . . . . Reinforcement 4 | . 2 . . . . . . . . 2 . . . . Assault 1 | . . . . . . . . . . . . 1 . . Garrison . | . . . . . . . . . . . . . . . Intercept . | . . . . . . . . . . . . . . . Searches Triggered . | . . . . . . . . . . . . . . . Construction Impeded . | . . . . . . . . . . . . . . . Haulers Reinforced . | . . . . . . . . . . . . . . . Active Scanning Responses . | . . . . . . . . . . . . . . . Cargo Convoy Interrupts 1 | . . . . . . 1 . . . . . . . . Stealth | -11 -10 -10 -10 -9 -8 -7 -7 -7 -6 -6 -6 -6 -6 -5 --------- Run | Yrd Mat Min Exi Min Mat Fac Low Zio Pro Fac Low Low Dat Pro Distress Signals 5 | . 1 . . . 2 . . . . 2 . . . . Communications Jammed . | . . . . . . . . . . . . . . . Distress Signals . | . . . . . . . . . . . . . . . Times Spotted 155 | . 20 . . 4 13 18 11 . 4 18 20 32 . 15 Peak Tracking Total 15 | . 3 . . 4 6 4 8 . 3 3 7 5 . 15 Tactical Retreats 26 | . 2 . . . 1 1 3 . . 3 3 12 . 1 Traps | -11 -10 -10 -10 -9 -8 -7 -7 -7 -6 -6 -6 -6 -6 -5 ------- Run | Yrd Mat Min Exi Min Mat Fac Low Zio Pro Fac Low Low Dat Pro Traps Triggered 10 | . . . . . . 9 . . . 1 . . . . Indirectly . | . . . . . . . . . . . . . . . Trap Hack Attempts . | . . . . . . . . . . . . . . . Triggered . | . . . . . . . . . . . . . . . Disarmed . | . . . . . . . . . . . . . . . Reprogrammed . | . . . . . . . . . . . . . . . Reused 1 | . . . . . . . . . . . 1 . . . Traps Extracted . | . . . . . . . . . . . . . . . Installed 3 | . . . . . . . . . . . 1 . . 2 Triggered 1 | . . . . . . . . . . . 1 . . . Most Traps Carried 3 | . . . . . . . . . . . 3 3 3 3 Machines | -11 -10 -10 -10 -9 -8 -7 -7 -7 -6 -6 -6 -6 -6 -5 ---------- Run | Yrd Mat Min Exi Min Mat Fac Low Zio Pro Fac Low Low Dat Pro Machines Disabled 5 | . . . . . 1 2 . . . . 2 . . . Max in Single Turn 1 | . . . . . . 1 . . . . 1 . . . Garrison Access 3 | . . . . . 1 1 . . . 1 . . . . Machines Repaired . | . . . . . . . . . . . . . . . Machines Dismantled . | . . . . . . . . . . . . . . . Machines Sabotaged . | . . . . . . . . . . . . . . . Overloaded Fab Kills . | . . . . . . . . . . . . . . . Hacking | -11 -10 -10 -10 -9 -8 -7 -7 -7 -6 -6 -6 -6 -6 -5 --------- Run | Yrd Mat Min Exi Min Mat Fac Low Zio Pro Fac Low Low Dat Pro Machines Accessed 52 | . 5 . 3 . 9 18 . . . 11 1 1 4 . Terminals 33 | . 4 . . . 7 12 . . . 10 . . . . Fabricators 2 | . . . . . . 2 . . . . . . . . Repair Stations . | . . . . . . . . . . . . . . . Recycling Units 3 | . 1 . . . 1 1 . . . . . . . . Scanalyzers 1 | . . . . . . 1 . . . . . . . . Garrison Access 4 | . . . . . 1 2 . . . 1 . . . . Total Hacks 152 | . 14 . 18 . 24 32 . . . 32 1 1 30 . Successful 103 | . 5 . 18 . 15 13 . . . 20 1 1 30 . Failed 49 | . 9 . . . 9 19 . . . 12 . . . . Catastrophic 10 | . . . . . 3 6 . . . 1 . . . . Database Lockouts . | . . . . . . . . . . . . . . . Manual 52 | . 6 . 1 . 10 21 . . . 14 . . . . Terminals 89 | . 12 . . . 21 26 . . . 30 . . . . Fabricators 2 | . . . . . . 2 . . . . . . . . Repair Stations . | . . . . . . . . . . . . . . . Recycling Units 5 | . 2 . . . 2 1 . . . . . . . . Scanalyzers 1 | . . . . . . 1 . . . . . . . . Garrison Access 5 | . . . . . 1 2 . . . 2 . . . . Terminal Hacks 81 | . 2 . 18 . 11 5 . . . 13 1 1 30 . Record 30 | . . . 17 . . . . . . 2 . . 11 . Part Schematic 11 | . . . . . . . . . . . . . 11 . Robot Schematic 5 | . . . . . . . . . . . . . 5 . Robot Analysis 2 | . . . . . 1 . . . . 1 . . . . Prototype ID Bank 6 | . . . . . 2 . . . . 1 . . 3 . Open Door 2 | . . . . . . . . . . . 1 1 . . Level Access Points 1 | . . . . . . . . . . 1 . . . . Branch Access Points 3 | . . . . . 1 1 . . . 1 . . . . Terminal Index 3 | . 1 . . . 1 . . . . 1 . . . . Alert Level 2 | . . . . . . 1 . . . 1 . . . . Unreport Threat 2 | . . . . . 2 . . . . . . . . . Locate Traps 7 | . 1 . . . 4 2 . . . . . . . . Dispatch Records 1 | . . . . . . . . . . 1 . . . . Transport Status 1 | . . . . . . . . . . 1 . . . . Recall Extermination 1 | . . . . . . . . . . 1 . . . . Zone Layout 3 | . . . . . . 1 . . . 2 . . . . Proto ID Catalog 1 | . . . 1 . . . . . . . . . . . Fabricator Hacks 2 | . . . . . . 2 . . . . . . . . Network Status 1 | . . . . . . 1 . . . . . . . . Build 1 | . . . . . . 1 . . . . . . . . Repair Station Hacks . | . . . . . . . . . . . . . . . Recycling Unit Hacks 1 | . 1 . . . . . . . . . . . . . Retrieve Components 1 | . 1 . . . . . . . . . . . . . Scanalyzer . | . . . . . . . . . . . . . . . Garrison Access Hacks 3 | . . . . . 1 1 . . . 1 . . . . Seal Access 3 | . . . . . 1 1 . . . 1 . . . . Unauthorized Hacks 16 | . 2 . . . 3 5 . . . 6 . . . . Terminals 15 | . 2 . . . 3 4 . . . 6 . . . . Assimilate 2 | . . . . . . 1 . . . 1 . . . . Botnet 13 | . 2 . . . 3 3 . . . 5 . . . . Fabricators . | . . . . . . . . . . . . . . . Repair Stations . | . . . . . . . . . . . . . . . Recycling Units . | . . . . . . . . . . . . . . . Scanalyzers 1 | . . . . . . 1 . . . . . . . . Researchers 1 | . . . . . . 1 . . . . . . . . Garrison Access . | . . . . . . . . . . . . . . . Data Cores Recovered 1 | . . . . . . 1 . . . . . . . . Used . | . . . . . . . . . . . . . . . Hacking Detections 36 | . 5 . . . 6 16 . . . 9 . . . . Full Trace Events 3 | . . . . . . 1 . . . 2 . . . . Feedback Events 1 | . . . . . . 1 . . . . . . . . Corruption 1 | . . . . . . 1 . . . . . . . . Feedback Blocked . | . . . . . . . . . . . . . . . Robot Schematics Acquired 5 | . . . . . . . . . . . . . 5 . Robots Built . | . . . . . . . . . . . . . . . Authchips . | . . . . . . . . . . . . . . . Time . | . . . . . . . . . . . . . . . Total Robot Build Rating . | . . . . . . . . . . . . . . . Part Schematics Acquired 13 | . . . . . . . . 2 . . . . 11 . Parts Built 2 | . . . . . . 2 . . . . . . . . Authchips . | . . . . . . . . . . . . . . . Time 106 | . . . . . . 106 . . . . . . . . Total Part Build Rating 12 | . . . . . . 12 . . . . . . . . Parts Repaired . | . . . . . . . . . . . . . . . Time . | . . . . . . . . . . . . . . . Parts Recycled . | . . . . . . . . . . . . . . . Recycled Matter . | . . . . . . . . . . . . . . . Retrieved Matter . | . . . . . . . . . . . . . . . Retrieved Components 9 | . 9 . . . . . . . . . . . . . Parts Scanalyzed . | . . . . . . . . . . . . . . . Part Schematics Acquired . | . . . . . . . . . . . . . . . Parts Damaged . | . . . . . . . . . . . . . . . Bothacking | -11 -10 -10 -10 -9 -8 -7 -7 -7 -6 -6 -6 -6 -6 -5 ------------ Run | Yrd Mat Min Exi Min Mat Fac Low Zio Pro Fac Low Low Dat Pro Used RIF Installer . | . . . . . . . . . . . . . . . Robots Hacked . | . . . . . . . . . . . . . . . Non-combat . | . . . . . . . . . . . . . . . Combat . | . . . . . . . . . . . . . . . Robot Hacks Applied . | . . . . . . . . . . . . . . . Relay Couplers Released . | . . . . . . . . . . . . . . . Fabnet Peak Effective % . | . . . . . . . . . . . . . . . Robots Rewired 3 | . . . . . . . . . . . 2 1 . . Allies Hacked . | . . . . . . . . . . . . . . . Hacks Repelled . | . . . . . . . . . . . . . . . Allies | -11 -10 -10 -10 -9 -8 -7 -7 -7 -6 -6 -6 -6 -6 -5 -------- Run | Yrd Mat Min Exi Min Mat Fac Low Zio Pro Fac Low Low Dat Pro Total Allies 10 | . . 3 . . . 1 . . . 1 2 2 . 1 Largest Group 3 | . . 3 3 3 3 1 . . . 1 3 1 . 1 Highest-Rated Group 96 | . . 40 40 40 40 10 . . . 10 62 20 . 96 Highest-Rated Ally 96 | . . 16 16 16 16 10 . . . 10 32 20 . 96 Total Orders . | . . . . . . . . . . . . . . . Ally Attacks 35 | . . . . 4 20 . . . . . 2 8 . 1 Total Damage 458 | . . . . 33 164 . . . . . 87 128 . 46 Kills 5 | . . . . . 5 . . . . . . . . . Allies Corrupted . | . . . . . . . . . . . . . . . Allies Melted 1 | . . . . . . . . . . . . . . 1 Intel | -11 -10 -10 -10 -9 -8 -7 -7 -7 -6 -6 -6 -6 -6 -5 ------- Run | Yrd Mat Min Exi Min Mat Fac Low Zio Pro Fac Low Low Dat Pro Active Infowar (turns) 6308 | 4 720 207 680 277 402 1291 211 541 81 391 1503 . . . Sensors 666 | . . 136 530 . . . . . . . . . . . Terrain 3645 | 4 720 71 150 277 402 1188 211 541 81 . . . . . Machine Analysis 726 | . . . . . . 715 11 . . . . . . . Triangulation 1894 | . . . . . . . . . . 391 1503 . . . Robot Analysis Total 2 | . . . . . 1 . . . . 1 . . . . Derelict Logs Recovered 7 | . . . . 1 . . 1 . 1 . 1 3 . . Drone Launches . | . . . . . . . . . . . . . . . Drone Recoveries . | . . . . . . . . . . . . . . . Exploration | -11 -10 -10 -10 -9 -8 -7 -7 -7 -6 -6 -6 -6 -6 -5 ------------- Run | Yrd Mat Min Exi Min Mat Fac Low Zio Pro Fac Low Low Dat Pro Turns Passed 10742 | 72 720 209 681 277 402 1292 226 541 804 1369 2450 1430 90 179 Spaces Moved 9471 | 36 501 173 415 139 478 2232 394 973 596 1121 1298 887 76 152 Core 59 | 20 . . . . . . . . 19 . . . . 20 Treads 1663 | . . . . . . . . . 163 . 1009 491 . . Legs 3456 | 16 501 173 415 139 122 . . . 76 1121 289 396 76 132 Wheels . | . . . . . . . . . . . . . . . Hover 4293 | . . . . . 356 2232 394 973 338 . . . . . Flight . | . . . . . . . . . . . . . . . Fastest Speed 40 | 50 120 120 120 190 40 40 43 45 45 90 97 120 120 50 Average Speed 98 | 156 120 120 163 190 61 45 47 45 117 100 173 143 120 112 Slowest Speed 260 | 250 120 120 190 190 170 106 103 105 250 190 260 165 120 200 Overloaded Moves . | . . . . . . . . . . . . . . . Propulsion Burnouts . | . . . . . . . . . . . . . . . Robots Hopped . | . . . . . . . . . . . . . . . Potential Cave-ins . | . . . . . . . . . . . . . . . Cave-ins Triggered . | . . . . . . . . . . . . . . . Exploration Rate (%) 56 | 4 74 36 90 24 48 62 36 85 74 24 99 87 68 30 Regions Visited 14 Branch Regions 10 Pre-discovered Areas 3 | . . . . 1 . . . 1 . . . . 1 . Known Exits Taken 2 | . . . . . . 1 . . . 1 . . . . Unknown Exits Taken 12 | 1 1 1 1 1 1 . 1 1 1 . 1 1 1 . Scrap Searched 15 | . . 1 . . . . 1 3 2 . 4 4 . . Spaces Dug 36 | . 2 . . . . . . . . 6 28 . . . Terrain Destroyed 135 | . 2 . . 1 6 5 36 . . 6 79 . . . Melee 10 | . 2 . . . . . . . . 6 2 . . . Projectile 12 | . . . . 1 6 5 . . . . . . . . AOE 113 | . . . . . . . 36 . . . 77 . . . Terrain Rammed . | . . . . . . . . . . . . . . . Walls Destroyed . | . . . . . . . . . . . . . . . Machines Disabled . | . . . . . . . . . . . . . . . Actions | -11 -10 -10 -10 -9 -8 -7 -7 -7 -6 -6 -6 -6 -6 -5 --------- Run | Yrd Mat Min Exi Min Mat Fac Low Zio Pro Fac Low Low Dat Pro Total 10562 | 44 561 174 420 152 587 2514 422 1076 672 1285 1444 975 75 161 Wait 710 | . 23 . 1 13 83 237 17 94 38 96 84 19 . 5 Move 9457 | 35 500 172 414 138 477 2231 393 972 595 1120 1297 886 75 152 Hop . | . . . . . . . . . . . . . . . Pick Up 45 | . 5 . . 1 8 12 . 1 5 4 5 4 . . Fast Attach 61 | 7 . 1 1 . 5 9 . 2 3 12 12 9 . . Attach 31 | . . . 1 . 2 5 1 2 7 7 2 4 . . Detach 24 | . . 1 3 . 1 2 1 3 3 3 2 3 . 2 Swap 14 | . 3 . . . 1 2 3 . . 1 4 . . . Drop 43 | . . . . . 10 14 . 2 3 1 4 9 . . Fire 43 | 2 25 . . . . . 7 . . . 9 . . . Melee 121 | . 4 . . . . . . . 18 41 20 38 . . Ram 2 | . . . . . . 2 . . . . . . . . Kick 1 | . 1 . . . . . . . . . . . . . Crush . | . . . . . . . . . . . . . . . Escape Stasis . | . . . . . . . . . . . . . . . Rewire 7 | . . . . . . . . . . . 4 3 . . Trap 3 | . . . . . . . . . . . 1 . . 2 Miscellaneous . | . . . . . . . . . . . . . . . Route ------- -11/Scrapyard -10/Materials (discovered 4 exits: [*Mat x2] / [*Min] / [*Sub]) -10/Mines (discovered 2 exits: [*Mat] / *Exi) -10/Exiles -9/Mines -8/Materials (discovered 2 exits: *Fac x2) -7/Factory (discovered 3 exits: Sto / *Low x2) -7/Lower Caves -7/Zion -6/Proximity Caves -6/Factory (discovered 6 exits: Fac x4 / *Low x2) -6/Lower Caves -6/Lower Caves -6/Data Miner -5/Proximity Caves History --------- Turn | Location | Event 35 | -11/Scrapyard | Discovered new exit (range 15) 73 | -11/Scrapyard | Entered Materials 256 | -10/Materials | Discovered new exit (range 11) 318 | -10/Materials | Build established: Mutant 337 | -10/Materials | Discovered new exit (range 9) 481 | -10/Materials | Discovered new exit (range 16) 731 | -10/Materials | Discovered new exit (range 8) 773 | -10/Materials | Derelicts attacked the area 793 | -10/Materials | Entered Mines 863 | -10/Mines | Found a damaged Exp. Sensor Array with a note attached 866 | -10/Mines | Found Prototype Device 866 | -10/Mines | Identified Exp. Sensor Array 875 | -10/Mines | Discovered new exit (range 10) 987 | -10/Mines | Assisted by bots powering up and referring to "LRC-V3" 995 | -10/Mines | Deemed a non-threat by the Exiles lab entrance 995 | -10/Mines | Discovered new exit (range 5) 1002 | -10/Mines | Entered Exiles 1002 | -10/Exiles | Accompanied by 3 allies 1037 | -10/Exiles | Met 8R-AWN 1054 | -10/Exiles | Met EX-HEX 1091 | -10/Exiles | Met EX-BIN 1108 | -10/Exiles | Aligned with FarCom system 1109 | -10/Exiles | Given EX-Vault access code 1186 | -10/Exiles | Opened EX-Vault 1194 | -10/Exiles | Found AWS/Thermal 1232 | -10/Exiles | Warned to stay clear of 0b10 Research branches 1293 | -10/Exiles | Met EX-DEC 1353 | -10/Exiles | Visited The Gauntlet 1661 | -10/Exiles | Discovered new exit (range 12) 1683 | -10/Exiles | Left Exiles lab with AWS/Thermal 1683 | -10/Exiles | Entered Mines 1683 | -9/Mines | Accompanied by 3 allies 1857 | -9/Mines | Discovered new exit (range 9) 1869 | -9/Mines | Received a Rocket Launcher from a helpful Derelict 1960 | -9/Mines | Entered Materials 1960 | -8/Materials | Accompanied by 3 allies 1960 | -8/Materials | Evolved 4 slots: Propulsion x2, Utility x2 1981 | -8/Materials | Build established: Skirmisher 2201 | -8/Materials | Discovered new exit (range 5) 2358 | -8/Materials | Discovered new exit (range 8) 2362 | -8/Materials | Entered Factory 2362 | -7/Factory | Evolved 2 slots: Power x1, Utility x1 2501 | -7/Factory | Build established: Scavenger-Scout 2810 | -7/Factory | Fabricated Wave Gun (x2) 2813 | -7/Factory | Build established: Scout 3376 | -7/Factory | AWS/Thermal suddenly broke down 3581 | -7/Factory | Identified exit to Storage 3581 | -7/Factory | Identified exit to Lower Caves 3594 | -7/Factory | Cargo convoy interrupted 3654 | -7/Factory | Entered Lower Caves 3660 | -7/Lower Caves | A Derelict revealed a hidden shortcut to a safe place 3661 | -7/Lower Caves | Ambushed by wild Derelicts 3663 | -7/Lower Caves | Learned Factory emergency access door positions 3776 | -7/Lower Caves | Attracted the attention of an 0b10 checkpoint 3880 | -7/Lower Caves | Entered Zion 3929 | -7/Zion | System corruption cleaned by Quarantine Array 3955 | -7/Zion | Found CR-A16's Pointy Stick 3978 | -7/Zion | Build established: Scavenger-Mutant 4046 | -7/Zion | Acquired unknown access codes intercepted by a Zionite 4193 | -7/Zion | Found Prototype Processor 4193 | -7/Zion | Identified Exp. Melee Analysis Suite 4202 | -7/Zion | Found Prototype Hackware 4304 | -7/Zion | Rebuked by Imprinter 4416 | -7/Zion | Discovered new exit (range 13) 4421 | -7/Zion | Entered Proximity Caves 4443 | -6/Proximity Caves | Spotted B-75 Beast 4488 | -6/Proximity Caves | Build established: Scavenger-Gladiator 4498 | -6/Proximity Caves | Revealed the true nature of CR-A16's Pointy Stick 4503 | -6/Proximity Caves | Destroyed B-75 Beast 4533 | -6/Proximity Caves | Lost 10 parts (2p4n3u1w) 4926 | -6/Proximity Caves | Learned Factory terminal intel 5047 | -6/Proximity Caves | Core integrity fell below 50% 5052 | -6/Proximity Caves | Discovered new exit (range 11) 5073 | -6/Proximity Caves | Lost 4 parts (2n1u1w) 5081 | -6/Proximity Caves | Core integrity fell below 20% 5225 | -6/Proximity Caves | Entered Factory 5225 | -6/Factory | Evolved 2 slots: Utility x2 5227 | -6/Factory | Loaded intel: 26 terminal locations 5262 | -6/Factory | Allied Derelicts emerged from ambush trap array 5267 | -6/Factory | Identified Exp. Hacking Suite 5428 | -6/Factory | Build established: Scavenger-Mutant 5482 | -6/Factory | Lost 3 allies 5638 | -6/Factory | Identified exit to Lower Caves 5809 | -6/Factory | Identified exit to Factory 5945 | -6/Factory | Build established: Mutant 6070 | -6/Factory | Spotted B-75 Beast 6082 | -6/Factory | Destroyed B-75 Beast 6109 | -6/Factory | Lost 4 parts (2p2u) 6594 | -6/Factory | Entered Lower Caves 6594 | -6/Lower Caves | Accompanied by 1 ally 6646 | -6/Lower Caves | Entered a destroyed Warlord outpost 6744 | -6/Lower Caves | Attracted the attention of an 0b10 outpost 6789 | -6/Lower Caves | Core integrity fell below 50% 6794 | -6/Lower Caves | Lost 8 parts (1p4n2u1w) 7063 | -6/Lower Caves | Lost 3 allies 7158 | -6/Lower Caves | Build established: Scavenger-Gladiator 7452 | -6/Lower Caves | Discovered new exit (range 11) 9044 | -6/Lower Caves | Entered another Lower Caves area 9124 | -6/Lower Caves | Learned Factory stockpile data 9242 | -6/Lower Caves | Encountered a Warlord checkpoint 9600 | -6/Lower Caves | Spotted B-75 Beast 9608 | -6/Lower Caves | Destroyed B-75 Beast 9958 | -6/Lower Caves | Learned Factory stockpile data 9968 | -6/Lower Caves | Attracted the attention of an 0b10 outpost 10200 | -6/Lower Caves | Build established: Derelict-Gladiator 10465 | -6/Lower Caves | Discovered new exit (range 8) 10474 | -6/Lower Caves | Entered Data Miner 10474 | -6/Data Miner | Discovered new exit (range 6) 10497 | -6/Data Miner | Met Data Miner 10518 | -6/Data Miner | Learned location of Section 7 (-2) 10518 | -6/Data Miner | Acquired the access code to Warlord's prototype stash 10539 | -6/Data Miner | Received God Mode back door access code from Data Miner 10564 | -6/Data Miner | Entered Proximity Caves 10653 | -5/Proximity Caves | Escorted by Enhanced Grunt 10724 | -5/Proximity Caves | Spotted B-75 Beast 10730 | -5/Proximity Caves | Core integrity fell below 20% 10732 | -5/Proximity Caves | Released all parts (6) 10743 | -5/Proximity Caves | Destroyed by S-27 Virus with Autogun Last Messages --------------- payload. 10695_ B-60 Warrior unfolds itself. 10695_ G-50 Soldier unfolds itself. 10695_ B-60 Warrior suffers critical hit (Burn). 10700_ Flexi-carbon Leg destroyed. 10708_ Critical hit (Burn: +37). 10711_ Arm. Leg destroyed. 10711_ Critical hit (Burn: +37). 10729_ Carbon-fiber Leg destroyed. 10732_ Released Melee Analysis Suite. 10732_ Released Imp. Melee Analysis Suite. 10732_ Released Med. Storage Unit. 10732_ Released Exp. Hacking Suite. 10732_ Released Target Analyzer. 10732_ Released Imp. Melee Analysis Suite. 10732_ Knocked back. 10733_ Installed Fire Trap. 10734_ Installed Dirty Bomb Trap. 10738_ S-27 Virus springs to life. 10740_ Knocked back. Map ----- +----------------------------------------------------+ | ?????????????????????????????????????????????????? | | ?????????????????????????????????????????????????? | | ?????????????????????????????????????????????????? | | ?????????????????????????????????????????????????? | | ?????????????????????????????????????????????????? | | ???? ???? ????????????????????????????????????? | | ?? ?? ????????????????????????????????????? | | ?? ?? #????????????????????????????????????? | | ?? ??# #????????????????????????????????????? | | ?? ??# #????????????????????????????????????? | | ?? ?## ##??######???????????????????????????? | | ?? ## ##?# ???????????????????????????? | | ??? ###$ ????????????????????????????? | | ???? # #??#####??????????????????????? | | ?????# #?? "??????????????????????? | | ###??# #? "??????????????????????? | | #??# #? """#???????????????????? | | #??# #" +???????????????????? | | #??# #" #???????????????????? | | #####" / #???????????????????? | | % /^ # #???????????????????? | | !%!^ """T" #???????????????????? | | ############"*% " """"" """#??#????????????????? | | ???????????### "# ######+#### #????????????????? | | ?????????????#### %s s #????????????????? | | ????????????????# @ #????????????????? | | ????????????????#################????????????????? | | ?????????????????????????????????????????????????? | | ?????????????????????????????????????????????????? | | ?????????????????????????????????????????????????? | | ?????????????????????????????????????????????????? | | ?????????????????????????????????????????????????? | | ?????????????????????????????????????????????????? | | ?????????????????????????????????????????????????? | | ?????????????????????????????????????????????????? | | ?????????????????????????????????????????????????? | | ?????????????????????????????????????????????????? | | ?????????????????????????????????????????????????? | | ?????????????????????????????????????????????????? | | ?????????????????????????????????????????????????? | | | | | | | | | | | | | | | | | | | | | +----------------------------------------------------+ Best States ------------- Heat Dissipation 37 Coolant Potential 65 Energy Generation 31 Energy Capacity 490 Matter Stores 300 Matter Capacity 300 Sight Range 16 Robot Scan Range 20 Terrain Scan Range 16 Terrain Scan Density 85 Armor Coverage 225 Resistance: TH 15 Resistance: EM 20 Utility Shielding 66 Weapon Cycling 15 Melee Speed Boost 20 Phase Shifting 5 Evasion (%) 65 Melee Accuracy 17 Target Analysis 5 Recoil Reduction 3 Offensive Hacking 16 Item Schematics ----------------- Mni. Drone Bay | -7/Zion | Archive Imp. EM Pulse Cannon | -7/Zion | Archive Combat Drone Bay | -6/Data Miner | Free Lgt. Regenerative Plating | -6/Data Miner | Free Cld. Nuclear Pulse Thruster | -6/Data Miner | Free Imp. Matter Compressor | -6/Data Miner | Free Mni. Smartbomb Launcher | -6/Data Miner | Free Adv. VSS Leg | -6/Data Miner | Free Adv. Coolant Injector | -6/Data Miner | Free HERF Cannon | -6/Data Miner | Free Hvy. Gauss Cannon | -6/Data Miner | Free Antigrav Array | -6/Data Miner | Free Q-thruster | -6/Data Miner | Free Robot Schematics ------------------ Y-54 Guardian | -6/Data Miner | Free R-10 Processor | -6/Data Miner | Free G-50 Soldier | -6/Data Miner | Free S-27 Virus | -6/Data Miner | Free G-67 Veteran | -6/Data Miner | Free Fabricated ------------ Wave Gun | x2 | -7/Factory | Preloaded Repaired ---------- Nothing Alien Tech Used ----------------- None Achievements -------------- Quantum Hacking Challenges ------------ None Game ------ Seed StorageNetworkWeb Manual? 0 Play Time 02:16:25 Cumulative 31.7 hours Start 2025.05.22 @ 23:23:05 End 2025.05.23 @ 13:48:50 Sessions 7 Manual Loads 0 Difficulty Rogue Special Mode None Game No. 20 Rogue 20 Adventurer 0 Explorer 0 Win Type - Total 0 Types 0/0/0/0/0/0/0/0/0/0 Lore% 40 Gallery% 29 Achievement% 27 Wizard Run 0 Options --------- Layout 1 ASCII 0 Keyboard 1 Movement Numpad Keybinds 0 Fullscreen 2 Font 24/Terminus Map View 50x35 Zoom Use 0% Tactical HUD 1 Map Filters NONE Filters NONE Steam 1 RUN: 9bc466c8-18dd-4da6-89d6-4443aa04013b